[Event "Romanian Rapid Open 2022"]
[Site "Sebes"]
[Date "2022.12.02"]
[Round "6.4"]
[White "Itkis, Boris"]
[Black "Nevednichy, Vladislav"]
[Result "0-1"]
[ECO "E14"]
[WhiteElo "2343"]
[BlackElo "2499"]
[Annotator "TA"]
[PlyCount "42"]
[EventDate "2022.12.02"]
[EventType "rapid"]
[EventCountry "ROU"]
[SourceTitle "playchess.com"]
[Source "ChessBase"]
[SourceQuality "1"]
[TimeControl "600+5"]

{[%evp 22,42,0,0,-16,-16,-5,-6,0,0,0,0,0,0,-3,-602,-590,-1209,-1195,-1166,-1129,-1054,-1060]} 1. d4 {[%emt 0:00:01]} Nf6 {[%emt 0:00:02]} 2. c4 {[%emt 0:00:02]} e6 {[%emt 0:00:01]} 3. Nf3 {[%emt 0:00:03]} d5 {[%emt 0:00:01]} 4. Nc3 {[%emt 0:00:02]} Nbd7 {[%emt 0:00:05]} 5. e3 {[%emt 0:00:18]} a6 {[%emt 0:00:08]} 6. b3 {[%emt 0:00:10]} b6 {[%emt 0:00:06]} 7. Bb2 {[%emt 0:00:03]} Bb7 {[%emt 0:00:02]} 8. Bd3 {[%emt 0:00:02]} Bd6 {[%emt 0:00:07]} 9. O-O {[%emt 0:00:02]} O-O {[%emt 0:00:09]} 10. Rc1 {[%emt 0:00:10]} Qe7 {[%emt 0:00:02]} 11. Na4 {[%emt 0:00:15]} dxc4 {[%emt 0:00:15]} 12. bxc4 {[%emt 0:00:01]} c5 {[%emt 0:00:02] E14: Queen's Indian: Classical Variation (4 e3).} 13. Ne5 {[%emt 0:00:22]} cxd4 {[%emt 0:01:03]} 14. exd4 {[%emt 0:00:07]} Rfd8 {[%emt 0:00:06][%cal Ob6b5] The position is equal.} 15. Qe2 {[%emt 0:00:08]} b5 {[%emt 0:00:06]} 16. cxb5 {[%emt 0:00:40]} axb5 {[%emt 0:00:06]} 17. Bxb5 {[%emt 0:00:07]} Nd5 {[%emt 0:00:30] [#] White must now prevent ...Bxe5.} 18. Nxd7 $146 {[%emt 0:00:35][%mdl 8192]} (18. g3 $11) ({Predecessor:} 18. g3 Nxe5 19. dxe5 Bb4 20. a3 Bxa3 21. Bxa3 Qxa3 22. Nc5 Rab8 23. Nxb7 Rxb7 24. Rfd1 {½-½ (24) Loeschnauer,R (2465)-Mauro,L (2412) ICCF email 2018}) 18... Nf4 $19 {[%emt 0:00:29][%mdl 64] [#] Discovered Attack, Double Attack. Black is clearly winning.} 19. Qc2 {[%emt 0:02:23]} Bxg2 {[%emt 0:00:22] ( -> ...Qg5)} 20. f3 {[%emt 0:00:51]} Qg5 {[%emt 0:00:56][%cal Rf4h3]} 21. Kf2 {[%emt 0:00:16]} Qxb5 {[%emt 0:00:19] White did not feel at home in the position after the opening.   Weighted Error Value: White=1.23/Black=0.01 (flawless)} 0-1

[Event "Romanian Rapid Open 2022"]
[Site "Sebes"]
[Date "2022.12.02"]
[Round "6.5"]
[White "Ghimpu, Samuel-Timotei"]
[Black "Manea, Alexandru"]
[Result "0-1"]
[ECO "B04"]
[WhiteElo "2455"]
[BlackElo "2339"]
[Annotator "TA"]
[PlyCount "96"]
[EventDate "2022.12.02"]
[EventType "rapid"]
[EventCountry "ROU"]
[SourceTitle "playchess.com"]
[Source "ChessBase"]
[SourceQuality "1"]
[TimeControl "600+5"]

{[%evp 10,96,39,46,46,59,62,64,50,58,53,52,50,28,39,16,16,25,33,29,23,12,16,4,22,16,14,0,31,0,0,0,0,0,27,0,0,0,9,0,0,0,36,22,24,0,0,0,0,0,2,14,17,13,10,0,0,-59,-72,-76,-61,-59,-36,-309,-309,-402,-418,-439,-437,-2045,-83,-640,-630,-5581,-872,-1179,-795,-1303,-650,-624,-10,-29968,-29968,-29986,-2954,-29989,-29990,-29994,-29995]} 1. e4 {[%emt 0:00:04]} Nf6 {[%emt 0:00:01]} 2. e5 {[%emt 0:00:12]} Nd5 {[%emt 0:00:01]} 3. d4 {[%emt 0:00:15]} d6 {[%emt 0:00:01]} 4. Nf3 {[%emt 0:00:07]} dxe5 {[%emt 0:00:02]} 5. Nxe5 {[%emt 0:00:02]} c6 {[%emt 0:00:01]} 6. Be2 {[%emt 0:00:09]} Bf5 {[%emt 0:00:02] B04: Alekhine's Defence: 4 Nf3.} 7. O-O {[%emt 0:09:51]} Nd7 {[%emt 0:10:32]} 8. Nf3 {[%emt 0:00:00]} e6 {[%emt 0:00:00] White is slightly better.} 9. c4 {[%emt 0:00:00]} N5f6 {[%emt 0:00:00]} 10. Nc3 {[%emt 0:00:00]} Ne4 {[%emt 0:00:00]} 11. Re1 {[%emt 0:00:00]} Be7 {[%emt 0:00:00] [#]} 12. Bf1 $146 {[%emt 0:00:00]} ({Predecessor:} 12. Bf4 O-O 13. Qb3 Qb6 14. Bd3 Bd6 15. Bxe4 Bxf4 16. Bxf5 exf5 17. Qc2 g6 18. Re7 {½-½ (36) Szulc,S (2110)-Rosabal Perea,R (2128) ICCF email 2020}) 12... Nxc3 {[%emt 0:00:00]} 13. bxc3 {[%emt 0:00:00]} O-O {[%emt 0:00:00]} 14. a4 {[%emt 0:00:00]} Qc7 {[%emt 0:00:00]} 15. h3 {[%emt 0:00:00]} Rfe8 {[%emt 0:00:00]} 16. a5 {[%emt 0:00:00]} b6 {[%emt 0:00:00]} 17. Qa4 {[%emt 0:00:50]} Rab8 18. Be3 {[%emt 0:00:00][%cal Od4d5]} h6 {[%emt 0:00:00] Prevents d5.} 19. axb6 {[%emt 0:00:00]} (19. d5 {with more complications.} c5 20. Qc6 Qd6 21. g3) 19... axb6 {[%emt 0:00:00]} 20. Qa7 {[%emt 0:00:00]} Rb7 {[%emt 0:00:00]} 21. Qa6 {[%emt 0:00:00][%cal Oe3f4]} Reb8 {[%emt 0:00:00]} 22. Red1 {[%emt 0:00:00]} Bd6 {[%emt 0:00:00]} 23. Qa2 {[%emt 0:00:00]} Bf4 {[%emt 0:00:00]} 24. Qd2 {[%emt 0:00:00]} Bxe3 {[%emt 0:00:00]} 25. Qxe3 {[%emt 0:00:00]} Bc2 {[%emt 0:00:00] Inhibits d5.} 26. Rd2 {[%emt 0:00:00]} Bg6 {[%emt 0:00:00]} 27. Ne5 {[%emt 0:00:04]} Nxe5 {[%emt 0:00:00]} 28. dxe5 {[%emt 0:00:01]} Rd8 {[%emt 0:00:00]} 29. Rad1 {[%emt 0:00:04]} Rxd2 {[%emt 0:00:00]} 30. Rxd2 {[%emt 0:00:01]} c5 {[%emt 0:00:00]} 31. Rd6 {[%emt 0:00:23]} Qe7 {[%emt 0:00:00]} 32. Qd2 {[%emt 0:00:16]} Qg5 {[%emt 0:00:00]} 33. f4 {[%emt 0:00:14]} (33. Rd8+ $11 Kh7 34. Qxg5 hxg5 35. Rd6) 33... Qg3 $15 {[%emt 0:00:00]} 34. Rd8+ {[%emt 0:00:09]} Kh7 {[%emt 0:00:00] Black is more active.} 35. Ra8 {[%emt 0:00:03] Inhibits Ra7.} ({Don't play} 35. Bd3 Ra7 36. Bxg6+ fxg6 $19) 35... Be4 {[%emt 0:00:00][%cal Ob7d7] And now ...Rd7! would win.} (35... Bf5 {simplifies} 36. Ra2 Bxh3 37. Qf2 Qxf2+ 38. Kxf2 Bg4) 36. Rf8 $2 {[%emt 0:00:08][%mdl 8192]} (36. Ra1 $15) 36... Ra7 $19 {[%emt 0:00:00]} 37. Qf2 {[%emt 0:00:10]} Qxc3 {[%emt 0:00:00]} 38. Kh2 {[%emt 0:00:03]} Rd7 {[%emt 0:00:00] [#] White must now prevent ...Rd2.} 39. Rb8 {[%emt 0:00:07]} (39. h4 $142) 39... Qd4 $2 {[%emt 0:00:00]} (39... Rd2 $19 {has better winning chances.} 40. Qg3 Qc1) 40. Qg3 {[%emt 0:00:04][%mdl 8192]} (40. Qxd4 $17 Rxd4 41. Rxb6) 40... Qd1 {[%emt 0:00:00]} 41. Kg1 {[%emt 0:00:06]} Bd3 {[%emt 0:00:00] Prevents f5.} (41... Qc1 $142 42. Qf2 Rd2 43. Qxd2 Qxd2) 42. Qf2 {[%emt 0:00:02]} Qc1 {[%emt 0:00:08]} 43. f5 {[%emt 0:00:03]} exf5 {[%emt 0:00:20]} (43... Qxc4 $2 {perishes.} 44. Rxb6 Bxf1 45. fxe6 fxe6 46. Qxf1 Qd4+ 47. Kh1 $19) (43... Bxf1 $142 44. Qxf1 Rd1 45. Qxd1 Qxd1+ 46. Kh2 Qd4) 44. Rxb6 {[%emt 0:00:02]} f4 $2 {[%emt 0:00:12]} ({Inferior is} 44... Bxc4 45. Qxf5+ g6 46. Qxd7 $11) (44... Rd4 $19 45. Rd6 Rf4 46. Qxf4 Qxf4 47. Bxd3 f6) 45. Rb8 $2 {[%emt 0:00:07][%mdl 8192]} (45. Rd6 $11 Bf5 46. Rxd7 Bxd7 47. Qxc5) 45... Bxf1 {[%emt 0:00:04]} 46. Kh2 {[%emt 0:00:05] [#]} Bxc4 {[%emt 0:00:33]} (46... Bxg2 $142 $1 47. Rb1 (47. Kxg2 Rd2) 47... Qxb1 48. Qxg2 Qe1 49. Qc2+ g6 50. Kg2 Rd2+ 51. Qxd2 Qxd2+ 52. Kf3 Qe3+ 53. Kg2 Qe2+ 54. Kh1 f3 55. h4 Qg2#) 47. Qf3 {[%emt 0:00:01]} Rd1 {[%emt 0:00:28][%csl Gc1][%cal Rd1h1]} 48. Qe4+ {[%emt 0:00:04]} g6 {[%emt 0:00:01] Weighted Error Value: White=1.07/Black=0.67} 0-1

[Event "Romanian Rapid Open 2022"]
[Site "Sebes"]
[Date "2022.12.02"]
[Round "6.6"]
[White "Stoleriu, George"]
[Black "Ciorgovean, Iustin"]
[Result "1-0"]
[ECO "A06"]
[WhiteElo "2389"]
[BlackElo "2319"]
[Annotator "TA"]
[PlyCount "129"]
[EventDate "2022.12.02"]
[EventType "rapid"]
[EventCountry "ROU"]
[SourceTitle "playchess.com"]
[Source "ChessBase"]
[SourceQuality "1"]
[TimeControl "600+5"]

{[%evp 9,129,-53,-40,-52,-53,-56,-49,-54,-44,-43,-52,-50,-52,-50,-39,-94,-30,-72,-70,-115,-90,-107,-125,-116,-100,-86,-62,-74,-32,-48,-30,-42,-40,-91,-84,-83,-45,-42,-37,-50,-14,-101,-71,-72,-66,-80,-37,-27,-23,-89,-87,-81,-95,-106,-102,-117,-94,-92,-77,-150,-103,-114,-102,-196,-130,-127,-125,-196,-189,-203,-100,-197,-29,-40,257,-88,-35,-17,212,149,144,-533,-560,-556,-553,-508,-453,-408,-135,-121,-137,-220,674,705,673,53,632,0,333,0,697,0,295,39,689,662,1845,1842,1842,1800,1860,1815,1265,1330,1585,1543,12842,12843,12843,12843,12844,12843]} 1. Nf3 {[%emt 0:00:09]} d5 {[%emt 0:00:08]} 2. b3 {[%emt 0:00:02]} c5 {[%emt 0:00:05]} 3. Bb2 {[%emt 0:00:06]} f6 {[%emt 0:00:02]} 4. d3 {[%emt 0:00:35]} e5 {[%emt 0:00:06]} 5. Nbd2 {[%emt 0:00:01]} Ne7 {[%emt 0:00:12]} 6. g3 {[%emt 0:00:20] A06: Réti Opening: 1 Nf3 d5.} Be6 {[%emt 0:00:28]} 7. Bg2 {[%emt 0:00:05]} Qd7 {[%emt 0:00:17] [#]} 8. c4 $146 {[%emt 0:00:43] Black is slightly better.} ({Predecessor:} 8. e3 Nec6 9. a3 Na6 10. O-O Bh3 11. Nxe5 fxe5 12. Qh5+ g6 13. Qxh3 O-O-O 14. Qxd7+ Kxd7 15. Bxd5 Bd6 16. Nc4 Nc7 17. Bxc6+ Kxc6 18. Bxe5 Bxe5 19. Nxe5+ {1-0 (19) Ivanov,V (2007)-Burdukov,A (1884) Petrozavodsk 2011}) 8... d4 {[%emt 0:00:05]} 9. Ne4 {[%emt 0:00:03]} Nec6 {[%emt 0:00:03]} 10. O-O {[%emt 0:01:13]} Be7 {[%emt 0:00:14]} 11. e3 {[%emt 0:00:06]} O-O {[%emt 0:00:09]} 12. Qe2 {[%emt 0:00:19]} (12. exd4 $15 exd4 13. Ne1) 12... a5 {[%emt 0:00:30]} ({Better is} 12... Bg4 $17) 13. exd4 {[%emt 0:00:14]} cxd4 {[%emt 0:00:02]} 14. a3 {[%emt 0:00:04]} Na6 {[%emt 0:00:03][%cal Bb8a6,Ba6c5,Bc5a4][%mdl 32]} 15. Rab1 {[%emt 0:00:28]} Rab8 {[%emt 0:00:33]} 16. Rfc1 {[%emt 0:00:39]} Rfc8 {[%emt 0:00:30]} 17. Ne1 {[%emt 0:00:53]} b6 {[%emt 0:01:41]} 18. Nc2 {[%emt 0:00:09]} Nc5 {[%emt 0:00:45]} 19. b4 {[%emt 0:00:53]} Na4 {[%emt 0:01:25][%cal Ra5b4]} 20. b5 {[%emt 0:00:41]} Nd8 {[%emt 0:00:12]} 21. Rf1 {[%emt 0:00:22]} (21. Re1 $15) 21... Nb7 {[%emt 0:00:39]} 22. Ba1 {[%emt 0:00:48]} Bg4 {[%emt 0:02:04] Inhibits f4.} 23. f3 {[%emt 0:00:19]} Bh5 {[%emt 0:00:01]} 24. Nf2 {[%emt 0:00:29]} Re8 {[%emt 0:00:24]} 25. Bh3 {[%emt 0:00:07]} (25. g4 $11 Bf7 26. f4) 25... Qd8 {[%emt 0:00:05]} 26. Be6+ {[%emt 0:00:27]} Kh8 $1 {[%emt 0:00:01][%cal Oe7a3]} (26... Bf7 27. Bxf7+ Kxf7 28. f4 $14) 27. Bd5 {[%emt 0:00:03]} Nbc5 {[%emt 0:00:07]} 28. g4 $1 {[%emt 0:00:48]} Bg6 {[%emt 0:00:03]} 29. Bc6 {[%emt 0:00:01]} (29. f4 $1 $11 {keeps the balance.} Rf8 30. Ne1 (30. fxe5 fxe5 31. Qxe5 Bf6 $15)) 29... Rf8 $17 {[%emt 0:00:07]} 30. f4 {[%emt 0:00:04]} Bd6 {[%emt 0:00:07]} (30... exf4 31. Nxd4 (31. Bxd4 Bd6 $15) 31... Bd6 32. Nf3 $16) 31. f5 {[%emt 0:00:10]} Be8 {[%emt 0:00:10]} 32. Bg2 {[%emt 0:00:02]} Bd7 {[%emt 0:00:11]} 33. Ne1 {[%emt 0:00:11]} Qe7 {[%emt 0:00:17]} 34. Nc2 {[%emt 0:00:40]} ({White should play} 34. Nh1) 34... Bc8 {[%emt 0:00:06]} (34... g6 $142 $1 35. fxg6 hxg6) 35. Rfe1 {[%emt 0:00:03][%cal Oc2d4]} Qc7 {[%emt 0:00:13]} (35... Nc3 $6 36. Bxc3 dxc3 37. d4 $11) 36. Qf1 {[%emt 0:00:16]} (36. Nh1 $17) 36... Bb7 {[%emt 0:00:02]} (36... g6 $1 $19 {[%cal Rg6f5]} 37. fxg6 hxg6) 37. Bxb7 {[%emt 0:00:02]} Qxb7 {[%emt 0:00:01]} 38. Qg2 {[%emt 0:00:01]} (38. Nh1 $17) 38... g6 $19 {[%emt 0:00:09]} 39. fxg6 {[%emt 0:00:32]} hxg6 {[%emt 0:00:01]} (39... Qxg2+ $19 {has better winning chances.} 40. Kxg2 hxg6) 40. Qh3+ {[%emt 0:00:01]} (40. Qg3 $17) 40... Kg7 $2 {[%emt 0:00:01]} (40... Qh7 $19 {And now ...Qxh3 would win.} 41. Qxh7+ Kxh7) 41. g5 $1 $11 {[%emt 0:00:06][%cal Oc2d4] Strongly threatening Nxd4!} Qf7 $2 {[%emt 0:00:38][%mdl 8192] [#]} (41... fxg5 42. Nxd4 (42. Ng4 Rf4 $11) 42... Rxf2 43. Kxf2 $16) (41... Rh8 $1 $15 {stays ahead.} 42. gxf6+ Kf7) 42. Qh6+ $2 {[%emt 0:00:08]} (42. Ng4 $6 Rh8 43. Qg3 (43. gxf6+ Qxf6 $18) 43... Rbd8 $18) (42. Nxd4 $1 $18 {[%mdl 512]} exd4 43. gxf6+ (43. Bxd4 Nd7 $18) 43... Qxf6 44. Ng4) 42... Kg8 $15 {[%emt 0:00:02]} 43. Ng4 {[%emt 0:00:01]} fxg5 {[%emt 0:00:05]} (43... Nxd3 $2 44. Nxf6+ $18) (43... Qh7 $11 {and Black stays safe.}) 44. Qxg5 $18 {[%emt 0:00:06] Dancing on a razor blade.} Qg7 {[%emt 0:00:07] [#]} 45. Nxe5 {[%emt 0:00:10][%mdl 8192]} (45. Nxd4 $1 $16 {[%cal Oe1e3][%mdl 512] is necessary to keep the advantage. aiming for Re3!} Nxd3 46. Ne6 Nxe1 47. Rxe1 (47. Nxg7 $2 Nf3+ 48. Kg2 Nxg5 $19) (47. Nh6+ $2 Kh7 $19) 47... Bc5+ 48. Nxc5 Nxc5 49. Bxe5 (49. Rxe5 Nd3 $16)) 45... Rf5 $19 {[%emt 0:00:03]} 46. Qg2 {[%emt 0:00:07]} Bxe5 {[%emt 0:00:09]} 47. Rxe5 {[%emt 0:00:04]} Rxe5 {[%emt 0:00:04]} 48. Bxd4 {[%emt 0:00:01] [#]} Rbe8 {[%emt 0:00:02]} 49. Bxe5 $17 {[%emt 0:00:04]} Qxe5 {[%emt 0:00:02]} (49... Rxe5 $6 50. d4 Nc3 51. Rf1 $11) 50. d4 {[%emt 0:00:01]} (50. Qxg6+ $17 Qg7 51. Qxg7+ Kxg7 52. Re1) 50... Qe2 $4 {[%emt 0:00:12][%mdl 8192]} (50... Qe4 $19 51. dxc5 Qxg2+ 52. Kxg2 Re2+ 53. Kf3 Rxc2) 51. Qxg6+ $18 {[%emt 0:00:01]} (51. dxc5 $2 Qxg2+ 52. Kxg2 Re2+ 53. Kf3 Rxc2 $19) 51... Kh8 {[%emt 0:00:01]} 52. Qh6+ {[%emt 0:00:03]} (52. dxc5 $2 Rg8 $19) 52... Kg8 {[%emt 0:00:01] Threatens to win with ...Qg4+.} 53. Qg6+ {[%emt 0:00:11]} Kh8 {[%emt 0:00:45]} 54. Qh6+ $2 (54. dxc5 $2 {perishes.} Rg8 $19) (54. Qf6+ Kh7 55. Qh4+ Kg6 56. Qg3+ (56. Re1 Re4 $16) 56... Kh7 57. Re1) 54... Kg8 {[%emt 0:00:00] [#]} 55. Qg6+ {[%emt 0:00:14]} (55. Qg5+ $142 $1 Kh8 56. Re1 Qxe1+ 57. Nxe1) 55... Kh8 {[%emt 0:00:00] [#]} 56. Re1 $2 {[%emt 0:00:09]} (56. dxc5 $2 {too greedy.} Rg8 $19) (56. Qf6+ $1 $18 Kh7 57. Qh4+ Kg6 58. Qg3+ (58. Re1 Re4 $16) 58... Kh7 59. Qh3+ Kg7 60. Re1 Qxc2 61. Qg3+ Qg6 62. Rxe8 Qxg3+ 63. hxg3) 56... Qxe1+ $4 {[%emt 0:00:00][%mdl 8192]} (56... Re6 $14 57. Qf5 Qxc4 58. dxc5 Qxc5+ 59. Qxc5 Rg6+ 60. Kf2 Nxc5 61. Re8+ Kg7) 57. Nxe1 {[%emt 0:00:01] White is clearly winning.} Rg8 {[%emt 0:00:00]} 58. Qxg8+ {[%emt 0:00:01]} Kxg8 {[%emt 0:00:00]} 59. dxc5 {[%emt 0:00:01]} Nxc5 {[%emt 0:00:00][%mdl 4096] Endgame KN-KN} 60. Kf2 {[%emt 0:00:01] Ke3 is the strong threat.} Kf7 {[%emt 0:00:00]} 61. Ke3 {[%emt 0:00:02] Hoping for Nd3.} Kf6 {[%emt 0:00:00]} 62. Nd3 {[%emt 0:00:00] White wants to mate with Nxc5.} Na4 {[%emt 0:00:00]} 63. Kd2 {[%emt 0:00:07]} Kf5 {[%emt 0:00:00]} 64. Kc2 {[%emt 0:00:00]} Ke4 {[%emt 0:00:00]} 65. h4 {[%emt 0:00:03] Never resign too early!   Weighted Error Value: White=0.83/Black=0.73} 1-0

[Event "Romanian Rapid Open 2022"]
[Site "Sebes"]
[Date "2022.12.02"]
[Round "6.7"]
[White "Craciun, Sasha-Matei"]
[Black "Soltanici, Ruslan"]
[Result "1/2-1/2"]
[ECO "B98"]
[WhiteElo "2001"]
[BlackElo "2357"]
[Annotator "TA"]
[PlyCount "106"]
[EventDate "2022.12.02"]
[EventType "rapid"]
[EventCountry "ROU"]
[SourceTitle "playchess.com"]
[Source "ChessBase"]
[SourceQuality "1"]
[TimeControl "600+5"]

{[%evp 20,106,-7,-13,-10,-43,0,-35,-27,-59,-24,-25,-20,-27,-27,-34,-22,-33,-37,-30,-24,-11,0,0,-18,-6,-21,-63,-76,-78,-75,-70,-68,-80,-37,-37,4,4,6,6,23,29,116,25,157,67,67,55,59,25,83,57,57,57,1010,150,29982,927,666,0,0,0,0,0,8,0,0,0,0,0,0,0,8,8,8,8,8,8,8,8,8,8,8,8,8,8,8,0,0]} 1. e4 {[%emt 0:00:02]} c5 {[%emt 0:00:03]} 2. Nf3 {[%emt 0:00:03]} d6 {[%emt 0:00:18]} 3. d4 {[%emt 0:00:03]} cxd4 {[%emt 0:00:02]} 4. Nxd4 {[%emt 0:00:02]} Nf6 {[%emt 0:00:02]} 5. Nc3 {[%emt 0:00:02]} a6 {[%emt 0:00:02]} 6. Bg5 {[%emt 0:00:03]} e6 {[%emt 0:00:07]} 7. f4 {[%emt 0:00:04]} Be7 {[%emt 0:00:03]} 8. Qf3 {[%emt 0:00:02]} h6 {[%emt 0:00:04]} 9. Bxf6 {[%emt 0:00:27]} Bxf6 {[%emt 0:00:02]} 10. O-O-O {[%emt 0:00:03]} Qb6 $1 {[%emt 0:00:02] The main line 10...Qb6 scores better than 10...Qc7.} 11. Nb3 {[%emt 0:00:23]} Qc7 {[%emt 0:00:29] B98: Sicilian Najdorf: 6 Bg5 e6 7 f4 Be7, sidelines.} 12. h4 {[%emt 0:01:22]} Nd7 {[%emt 0:00:56]} 13. g4 {[%emt 0:00:28]} Bxc3 $1 {[%emt 0:00:51] Black is slightly better.} 14. bxc3 {[%emt 0:01:38]} Nb6 {[%emt 0:00:16]} (14... b5 {with more complications.} 15. Qd3 Ke7 16. Rh3 e5) 15. f5 {[%emt 0:02:08]} Bd7 {[%emt 0:03:35][%cal Bc8d7,Bd7c6,Bc6e4][%mdl 32] [#]} (15... Na4 {is interesting.} 16. Rh3 Bd7 17. Qd3 h5) 16. Qg3 $146 {[%emt 0:00:18]} ({Predecessor:} 16. Bg2 O-O-O 17. Rhe1 Kb8 18. Qg3 e5 19. Re3 Na4 20. Bf1 Rc8 21. Kd2 Rhd8 22. Rb1 {0-1 (30) Szabo,A (2283)-Soltanici,R (2367) Baia Sprie 2011}) 16... e5 {[%emt 0:00:34]} 17. Qd3 {[%emt 0:00:48]} Bc6 {[%emt 0:01:00] next ...d5 is good for Black.} 18. Qxd6 {[%emt 0:00:31]} Qxd6 {[%emt 0:00:02]} 19. Rxd6 {[%emt 0:00:01]} Ke7 {[%emt 0:00:04]} 20. Rd2 {[%emt 0:00:15]} Bxe4 {[%emt 0:00:06]} 21. Rh3 {[%emt 0:00:05]} f6 {[%emt 0:00:11]} 22. Nc5 {[%emt 0:00:44]} Bc6 {[%emt 0:00:28]} 23. Rg3 {[%emt 0:00:10]} Rad8 {[%emt 0:00:31]} 24. Rxd8 {[%emt 0:00:13]} Rxd8 {[%emt 0:00:01]} 25. g5 {[%emt 0:00:14]} hxg5 {[%emt 0:01:22]} 26. hxg5 {[%emt 0:00:01]} fxg5 {[%emt 0:00:02]} 27. Rxg5 {[%emt 0:00:02]} Kf7 {[%emt 0:00:11]} (27... Kf6 $5 {[%cal Rf6g5]} 28. Rxg7 Kxg7 29. Ne6+ Kf6 30. Nxd8 Bh1 $15) 28. Rg6 {[%emt 0:00:27]} Rh8 {[%emt 0:00:28] [#] Strongly threatening ...Rh1.} 29. Bxa6 $1 {[%emt 0:00:07]} bxa6 {[%emt 0:00:28]} (29... Rh1+ {is more complex.} 30. Kd2 Rh2+ 31. Ke1 Rh1+) 30. Rxc6 $11 {[%emt 0:00:01][%mdl 4096] Endgame KRN-KRN} Nc4 {[%emt 0:00:04]} (30... Rh1+ $11 31. Kd2 Rh2+ 32. Ke3 Rh3+ 33. Ke4 Rh4+ 34. Kxe5 Nc4+ 35. Kd5 Ne3+ 36. Kd6 (36. Ke5 Nc4+ 37. Kd5 Ne3+ 38. Kd6 Nxf5+ 39. Ke5 Rh5 $16) 36... Nxf5+ 37. Ke5 Rh5) 31. Kd1 {[%emt 0:00:10]} (31. Rxa6 $2 Rh1#) (31. Rc7+ $16 Kg8 32. Rc8+ (32. Nxa6 $2 Rh1#) 32... Kh7 33. Rxh8+ Kxh8 34. Nxa6) 31... Rd8+ {[%emt 0:00:05] [#]} (31... Ne3+ $11 {remains equal.} 32. Kd2 Nxf5) 32. Ke1 {[%emt 0:00:04]} (32. Ke2 $1 $16) 32... Ne3 $14 {[%emt 0:00:03][%csl LRc2,LRf5]} 33. Rxa6 {[%emt 0:00:10]} Nxf5 {[%emt 0:00:04]} 34. a4 {[%emt 0:00:14]} Ne3 {[%emt 0:00:02]} (34... Rc8 $11 35. Ne4 Rc4 36. Ng5+ Ke7) 35. a5 {[%emt 0:01:35]} Rc8 {[%emt 0:00:15]} 36. Ne4 {[%emt 0:00:00] And now Nd6+ would win.} Nxc2+ $2 {[%emt 0:00:06][%mdl 8192]} (36... Nc4 $14) 37. Ke2 $2 {[%emt 0:00:00]} (37. Kd2 $18 {is the precise move to win. Nd6+ would kill now.} Rg8 38. Ng5+ Ke7 39. Re6+ Kd7 40. Kxc2) 37... Rc4 $2 {[%emt 0:00:05]} (37... Ke7 $16 38. Rg6 Ra8) 38. Kd3 {[%emt 0:00:00]} (38. Nd6+ $142 Ke6 39. Nxc4+ Kd5 40. Nd2 e4 41. Rg6 Ke5 42. a6 Kf5 43. Rxg7) 38... Ra4 $18 {[%emt 0:00:01]} 39. Kxc2 $2 {[%emt 0:00:00]} (39. Ng5+ $18 Ke8 40. Kxc2) 39... Rxe4 {[%emt 0:00:01] KR-KR. The position is equal.} 40. Kb3 {[%emt 0:00:00] Threatens to win with Ra8.} Re1 {[%emt 0:00:02]} 41. Kc4 {[%emt 0:00:00]} e4 {[%emt 0:00:06]} 42. Rc6 {[%emt 0:00:00]} g5 {[%emt 0:00:06]} 43. a6 {[%emt 0:00:00]} Ra1 {[%emt 0:00:03]} 44. Kd4 {[%emt 0:00:00]} Ra4+ {[%emt 0:00:13]} 45. c4 {[%emt 0:00:50]} Ke7 {[%emt 0:00:01]} 46. Kxe4 {[%emt 0:00:00]} g4 {[%emt 0:00:03]} 47. Kd5 {[%emt 0:00:00] Black must now prevent Rg6.} g3 {[%emt 0:00:04]} 48. Rg6 {[%emt 0:00:00]} (48. Re6+ {feels hotter.} Kf7 49. Re3 g2 50. Rg3) 48... g2 $1 {[%emt 0:00:02]} 49. Rxg2 {[%emt 0:00:00]} Rxa6 {[%emt 0:00:03]} 50. Kc5 {[%emt 0:00:00]} Kd8 {[%emt 0:00:07]} 51. Kb5 {[%emt 0:00:00]} Rh6 {[%emt 0:00:04]} 52. c5 {[%emt 0:00:00]} Kc8 {[%emt 0:00:06]} 53. c6 {[%emt 0:00:00] White threatens Kb6 and mate.} Rh1 {[%emt 0:00:02] Weighted Error Value: White=0.33/Black=0.30} 1/2-1/2